bitfinex-derivatives/quotes_SOLF0:USTF0_20251115
["timestamp","ask_amount","ask_price","bid_price","bid_amount"]
[1763247686904,1.8460029,139.82,139.76,3.24]
[1763247687107,5.38199773,139.81,139.76,3.24]
[1763247687302,1.8460029,139.82,139.76,3.24]
[1763247687496,0.05273866,139.8,139.78,3.24]
[1763247694010,0.05273866,139.8,139.75,3.24]
[1763247694306,2.87975609,139.79,139.75,3.24]
[1763247695107,0.05356315,139.78,139.76,0.04710221]
[1763247702816,0.05356315,139.78,139.76,3.38710221]
[1763247707914,5.54183643,139.83,139.76,3.38710221]
[1763247708121,5.54183643,139.82,139.76,3.34]
[1763247708419,5.54183643,139.84,139.76,3.34]
[1763247708620,5.54183643,139.83,139.76,3.34]
[1763247708822,5.54183643,139.84,139.76,3.34]
[1763247709019,0.05155319,139.81,139.79,3.34]
[1763247725729,5.558885,139.8,139.79,3.34]
[1763247733231,10.90576672,139.8,139.79,3.34]
[1763247735329,13.44053481,139.8,139.7,3.14]
[1763247735527,10.90576672,139.79,139.7,3.14]
[1763247735728,10.90576672,139.78,139.7,3.14]
[1763247736028,10.90760537,139.77,139.7,3.14]
[1763247736230,0.0531746,139.75,139.73,3.14]
[1763247736428,0.05167455,139.75,139.73,3.18826324]
[1763247744638,0.05167455,139.75,139.73,0.04826324]
[1763247748142,5.43659988,139.75,139.73,0.04826324]
[1763247748432,13.45728295,139.74,139.73,0.04826324]
[1763247748637,13.45728295,139.74,139.68,3.14]
[1763247748638,20.1433218,139.74,139.68,3.14]
[1763247748830,10.92251486,139.73,139.68,3.14]
[1763247749033,5.53758953,139.72,139.68,3.14]
[1763247749238,5.53758953,139.71,139.68,3.14]
[1763247749547,0.04532998,139.71,139.68,3.19283666]
[1763247750041,0.04532998,139.71,139.68,0.05283666]
[1763247750436,5.53248085,139.7,139.68,0.05283666]
[1763247750636,0.04532998,139.71,139.68,0.05283666]
[1763247750939,5.53251834,139.7,139.68,0.05283666]
[1763247751136,0.04532998,139.71,139.68,0.05283666]
[1763247751331,5.52917942,139.7,139.68,0.05283666]
[1763247751538,0.04532998,139.71,139.68,0.05283666]
[1763247751741,5.52880575,139.7,139.68,0.05283666]
[1763247751936,0.04532998,139.71,139.68,0.05283666]
[1763247752135,5.52880575,139.7,139.68,0.05283666]
[1763247753344,1.67035421,139.71,139.68,0.05283666]
[1763247753639,5.52257437,139.7,139.68,0.05283666]
[1763247753941,1.67035421,139.71,139.68,0.05283666]
[1763247754244,5.52253695,139.7,139.68,0.05283666]
[1763247754739,2.09253695,139.72,139.7,3.18]
[1763247755036,3.17,139.77,139.72,3.18]
[1763247755436,3.17,139.77,139.73,1.62502423]
[1763247755632,3.17,139.77,139.74,3.18]
[1763247755837,0.05342588,139.77,139.74,3.23112106]
[1763247756039,0.05342588,139.77,139.76,3.18]
[1763247756443,3.17,139.82,139.76,3.18]
[1763247756743,3.17,139.82,139.78,3.18]
[1763247757436,0.04613066,139.81,139.79,3.22563623]
[1763247758843,3.17,139.8,139.79,0.04563623]
[1763247759044,3.17,139.79,139.71,3.18]
[1763247759244,3.17,139.74,139.71,3.18]
[1763247759747,3.17,139.74,139.68,3.18]
[1763247759946,1.62502423,139.75,139.68,3.18]
[1763247759947,0.0487772,139.72,139.7,0.05092141]
[1763247760247,0.0487772,139.72,139.7,3.23092141]
[1763247761346,4.79502423,139.79,139.72,3.18]
[1763247761549,1.62502423,139.81,139.75,3.18]
[1763247761839,5.36543598,139.84,139.77,3.18]
[1763247761840,1.62502423,139.84,139.77,3.18]
[1763247762244,0.05163636,139.82,139.8,3.18]
[1763247763242,3.17,139.81,139.79,0.05268117]
[1763247763448,4.79502423,139.8,139.79,0.05268117]
[1763247763641,4.79502423,139.8,139.74,3.18]
[1763247764542,4.79502423,139.8,139.7,10.28]
[1763247764543,3.17,139.77,139.76,0.0551577]
[1763247764745,0.05424315,139.78,139.73,3.18]
[1763247764942,3.17,139.81,139.75,3.18]
[1763247765753,0.04622238,139.79,139.77,3.22847348]
[1763247766244,0.04622238,139.79,139.78,4.80502423]
[1763247767841,0.04622238,139.79,139.78,3.18]
[1763247768446,4.84124661,139.79,139.77,0.04847348]
[1763247769554,3.17,139.78,139.72,3.18]
[1763247769748,1.62502423,139.74,139.69,3.18]
[1763247769944,3.17,139.73,139.69,3.18]
[1763247770152,1.62502423,139.72,139.69,3.18]
[1763247770349,5.49443329,139.78,139.7,3.18]
[1763247770556,1.62502423,139.76,139.7,3.18]
[1763247770754,1.62502423,139.76,139.73,3.23294087]
[1763247770755,0.04932588,139.75,139.73,3.23294087]
[1763247771861,5.49743544,139.81,139.73,3.23294087]
[1763247772048,5.49743544,139.81,139.73,3.18]
[1763247772459,5.49743544,139.82,139.73,3.18]
[1763247772655,5.49743544,139.81,139.73,3.18]
[1763247772955,0.04934045,139.78,139.76,0.05238668]
[1763247773149,0.0550234,139.78,139.77,3.18]
[1763247774659,3.2250234,139.78,139.76,0.05238668]
[1763247775948,0.0550234,139.78,139.76,3.23238668]
[1763247777547,3.2250234,139.78,139.72,3.18]
[1763247777756,3.17,139.77,139.72,3.18]
[1763247778152,3.17,139.76,139.72,3.18]
[1763247778663,3.22191614,139.75,139.73,0.05350558]
[1763247780467,3.17,139.73,139.66,3.18]
[1763247780663,8.66920702,139.72,139.66,3.18]
[1763247781169,3.17,139.72,139.66,3.18]
[1763247781357,3.22509532,139.7,139.68,0.05178578]
[1763247782363,7.17087264,139.7,139.68,0.05178578]
[1763247782564,3.17,139.69,139.68,0.05178578]
[1763247783064,3.17,139.68,139.62,3.18]
[1763247783264,12.61387941,139.69,139.6,3.18]
[1763247783561,3.17,139.69,139.6,3.18]
[1763247783964,0.05294511,139.66,139.64,3.18]
[1763247785256,3.32294511,139.66,139.63,0.05033265]
[1763247786766,0.05294511,139.66,139.63,3.34033265]
[1763247788666,3.32294511,139.66,139.63,0.05033265]
[1763247793674,3.32294511,139.66,139.63,3.37033265]
[1763247798982,0.05294511,139.66,139.63,3.37033265]
[1763247803979,3.44294511,139.66,139.63,0.05033265]
[1763247805679,0.05294511,139.66,139.63,3.37033265]
[1763247809289,3.44294511,139.66,139.63,3.37033265]
[1763247811787,3.44294511,139.66,139.64,3.32]
[1763247811788,0.05294511,139.66,139.64,3.32]
[1763247811995,7.10199759,139.72,139.66,3.32]
[1763247812187,5.47641522,139.71,139.66,3.32]
[1763247812687,8.86641522,139.71,139.66,3.32]
[1763247812888,3.39,139.7,139.66,3.32]
[1763247813082,0.05107236,139.69,139.67,3.36901639]
[1763247816195,5.53473962,139.69,139.67,3.36901639]
[1763247816394,0.05107236,139.69,139.67,3.36901639]
[1763247819692,0.05107236,139.69,139.67,5.90765282]
[1763247819891,0.05107236,139.69,139.68,3.25]
[1763247820699,5.49641981,139.73,139.68,3.25]
[1763247821000,5.32127782,139.75,139.68,3.25]
[1763247821294,10.81746828,139.74,139.68,3.25]
[1763247821500,9.16507316,139.77,139.68,3.25]
[1763247821800,5.49944224,139.76,139.72,3.25]
[1763247822097,6.62643673,139.8,139.74,3.25]
[1763247822401,10.83690077,139.79,139.74,3.25]
[1763247822595,5.50009849,139.78,139.74,3.25]
[1763247822900,5.55254332,139.77,139.76,3.25]
[1763247823202,0.05037876,139.78,139.76,3.25]
[1763247833610,3.32037876,139.78,139.75,3.30500124]
[1763247833807,3.32037876,139.78,139.75,0.05500124]
[1763247834000,0.05037876,139.78,139.75,3.30500124]
[1763247841314,3.27,139.75,139.71,3.25]
[1763247841499,1.49037876,139.78,139.71,3.25]
[1763247841500,3.27,139.78,139.71,3.25]
[1763247842504,3.27,139.75,139.73,0.05402722]
[1763247842815,3.31539207,139.75,139.73,0.04746931]
[1763247844908,5.68796067,139.74,139.73,0.04746931]
[1763247845510,0.04539207,139.75,139.73,3.23746931]
[1763247845806,3.19539207,139.75,139.73,0.04746931]
[1763247848015,0.04539207,139.75,139.73,3.23746931]
[1763247856715,2.53796067,139.8,139.73,3.23746931]
[1763247857519,7.89095263,139.82,139.73,3.23746931]
[1763247857709,0.0527918,139.79,139.75,3.16]
[1763247857913,0.0527918,139.79,139.77,3.16]
[1763247859619,5.35299196,139.84,139.77,3.16]
[1763247859824,11.26095263,139.85,139.77,3.16]
[1763247860121,5.35299196,139.86,139.79,3.16]
[1763247860322,5.90796067,139.88,139.79,3.16]
[1763247860524,5.47033331,139.87,139.79,3.16]
[1763247860722,0.05218649,139.85,139.83,3.16]
[1763247868627,3.42218649,139.85,139.82,0.05378187]
[1763247869028,5.90796067,139.84,139.82,0.05378187]
[1763247869224,3.42218649,139.85,139.82,3.21378187]
[1763247869431,0.05218649,139.85,139.82,3.21378187]
[1763247871524,3.42218649,139.85,139.82,3.21378187]
[1763247872929,3.42218649,139.85,139.82,0.05378187]
[1763247873628,3.42218649,139.85,139.82,3.21378187]
[1763247876026,3.42218649,139.85,139.82,0.05378187]
[1763247876831,5.04384239,139.85,139.82,0.05378187]
[1763247877133,3.16,139.84,139.82,0.05378187]
[1763247877829,3.21218649,139.85,139.82,3.40378187]
[1763247879522,3.16,139.84,139.82,0.05378187]
[1763247880933,3.16,139.79,139.75,3.35]
[1763247881730,1.6216559,139.78,139.72,4.9716559]
[1763247881932,1.6216559,139.74,139.69,3.35]
[1763247882124,4.7816559,139.78,139.71,3.35]
[1763247882730,4.7816559,139.78,139.72,4.9716559]
[1763247882920,0.05447434,139.76,139.74,3.39610519]
[1763247884930,3.21447434,139.76,139.74,0.04610519]
[1763247885230,3.16,139.75,139.74,0.04610519]
[1763247887931,0.05447434,139.76,139.74,3.39610519]
[1763247888132,0.05447434,139.76,139.74,5.01776109]
[1763247894144,3.21447434,139.76,139.74,0.04610519]
[1763247894351,0.05447434,139.76,139.74,3.39610519]
[1763247894943,3.21447434,139.76,139.74,0.04610519]
[1763247895148,4.83613024,139.76,139.74,0.04610519]
[1763247895347,3.16,139.75,139.74,0.04610519]
[1763247897355,3.21447434,139.76,139.74,0.04610519]
[1763247899059,0.05447434,139.76,139.74,3.39610519]
[1763247900457,3.21447434,139.76,139.74,0.04610519]
[1763247901461,3.16,139.75,139.69,1.6216559]
[1763247901853,1.6216559,139.74,139.69,1.6216559]
[1763247902058,3.16,139.75,139.61,27.8]
[1763247902059,3.16,139.71,139.66,1.6216559]
[1763247902561,3.16,139.69,139.67,0.05482684]
[1763247903658,0.05155408,139.7,139.67,3.40482684]
[1763247905466,3.15155408,139.7,139.67,3.40482684]
[1763247906966,3.15155408,139.7,139.67,0.05482684]
[1763247908071,3.15155408,139.7,139.67,3.40482684]
[1763247908469,3.15155408,139.7,139.67,0.05482684]
[1763247911775,3.1,139.69,139.61,3.35]
[1763247912069,3.1,139.69,139.63,3.35]
[1763247912975,0.04525864,139.67,139.65,0.04572576]
[1763247913774,0.04525864,139.67,139.65,3.16572576]
[1763247916582,0.04525864,139.67,139.66,3.12]
[1763247917466,0.04525864,139.67,139.65,3.99493296]
[1763247917670,0.04525864,139.67,139.65,7.11493296]
[1763247919071,0.04525864,139.67,139.65,3.99493296]
[1763247919570,0.04525864,139.67,139.65,7.11493296]
[1763247922882,0.04525864,139.67,139.66,1.62468413]
[1763247923883,0.04525864,139.67,139.66,4.74468413]
[1763247924879,5.48828701,139.71,139.66,4.74468413]
[1763247925080,8.44255079,139.73,139.7,1.62468413]
[1763247925280,5.4915976,139.72,139.7,1.62468413]
[1763247925480,5.4915976,139.71,139.7,1.62468413]
[1763247925784,5.4915976,139.71,139.7,4.74468413]
[1763247928085,0.04697847,139.72,139.7,4.74468413]
[1763247928788,5.49565629,139.71,139.7,4.74468413]
[1763247928978,0.04697847,139.72,139.7,4.74468413]
[1763247929481,0.04697847,139.72,139.71,3.12]
[1763247929883,5.25888521,139.77,139.72,3.12]
[1763247930082,8.44888521,139.78,139.76,1.62468413]
[1763247930290,5.49466388,139.77,139.76,1.62468413]
[1763247930887,3.23997123,139.78,139.76,1.62468413]
[1763247931087,3.23997123,139.78,139.75,0.05441228]
[1763247931282,3.23997123,139.78,139.75,3.17441228]
[1763247931987,0.04997123,139.78,139.75,3.17441228]
[1763247933190,0.04997123,139.78,139.76,4.74468413]
[1763247933888,0.04997123,139.78,139.77,3.12]
[1763247934093,5.48907796,139.83,139.78,3.08]
[1763247934282,3.39,139.81,139.77,4.70468413]
[1763247934482,3.39,139.81,139.78,3.08]
[1763247935283,3.4447444,139.81,139.78,3.13350598]
[1763247935991,5.06942853,139.81,139.78,3.13350598]
[1763247936488,5.06942853,139.81,139.7,8.72]
[1763247936489,3.39,139.78,139.72,1.62468413]
[1763247936679,1.62468413,139.77,139.71,3.08]
[1763247936879,3.39,139.78,139.71,3.08]
[1763247937483,0.0531777,139.76,139.74,3.08]
[1763247938987,5.92613551,139.82,139.75,3.08]
[1763247939892,2.53613551,139.84,139.75,3.08]
[1763247940099,0.05511433,139.81,139.79,3.08]
[1763247941191,3.44511433,139.81,139.78,0.04528603]
[1763247941388,3.39,139.79,139.78,0.04528603]
[1763247941594,3.39,139.8,139.78,0.04528603]
[1763247942485,5.92613551,139.8,139.78,0.04528603]
[1763247942790,3.39,139.79,139.78,0.04528603]
[1763247944988,0.05511433,139.81,139.78,3.12528603]
[1763247946700,3.44511433,139.81,139.78,3.12528603]
[1763247955004,3.44511433,139.81,139.78,0.04528603]
[1763247960308,3.39,139.78,139.69,3.08]
[1763247960500,3.39,139.76,139.69,3.08]
[1763247961300,3.39,139.73,139.71,0.05461574]
[1763247966205,8.88766407,139.73,139.71,0.05461574]
[1763247966400,3.37,139.72,139.71,0.05461574]
[1763247966797,0.04896194,139.74,139.71,0.05461574]
[1763247966798,0.04896194,139.74,139.71,3.25461574]
[1763247969703,3.41896194,139.74,139.71,0.05461574]
[1763247969912,3.37,139.72,139.71,0.05461574]
[1763247970505,3.37,139.72,139.68,3.2]
[1763247971502,3.37,139.72,139.69,0.05502079]
[1763247971709,3.37,139.72,139.69,3.25502079]
[1763247972503,0.04896194,139.74,139.69,3.25502079]
[1763247972713,8.87403884,139.73,139.69,3.25502079]
[1763247973304,3.25,139.72,139.69,0.05502079]
[1763247973499,8.75453697,139.72,139.69,0.05502079]
[1763247973706,3.25,139.72,139.69,0.05502079]
[1763247974605,3.25,139.72,139.69,3.21502079]
[1763247976316,3.25,139.73,139.69,3.21502079]
[1763247976714,3.29896194,139.74,139.69,3.21502079]
[1763247976913,8.80016263,139.74,139.69,3.21502079]
[1763247977213,3.29896194,139.74,139.69,3.21502079]
[1763247977418,8.80016263,139.74,139.69,3.21502079]
[1763247977641,0.04896194,139.74,139.69,3.21502079]
[1763247978119,0.04896194,139.74,139.71,3.16]
[1763247978932,0.04896194,139.74,139.73,3.16]
[1763247979234,3.25,139.78,139.73,3.16]
[1763247979425,3.25,139.77,139.73,3.16]
[1763247980034,0.05508355,139.76,139.74,0.05460872]
[1763247983335,0.05508355,139.76,139.74,3.21460872]
[1763247983732,3.30508355,139.76,139.74,0.05460872]
[1763247984138,8.75267304,139.75,139.69,3.16]
[1763247985031,8.75267304,139.75,139.71,0.04926598]
[1763247985234,3.25,139.75,139.72,3.16]
[1763247986543,8.7550365,139.75,139.72,3.16]
[1763247988046,3.25,139.75,139.72,3.16]
[1763247988638,3.25,139.75,139.71,0.04926598]
[1763247988838,3.25,139.75,139.72,3.16]
[1763247989043,3.30508355,139.76,139.72,3.16]
[1763247990650,0.05508355,139.76,139.72,3.16]
[1763247990944,0.05508355,139.76,139.73,3.16]
[1763247991247,3.30508355,139.76,139.73,3.16]
[1763247991545,0.05508355,139.76,139.73,3.16]
[1763247992741,3.30508355,139.76,139.73,3.16]
[1763247999857,0.05508355,139.76,139.73,3.16]
[1763248002152,3.33508355,139.76,139.72,3.12]
[1763248002360,8.79747911,139.75,139.72,3.12]
[1763248002556,5.51945625,139.74,139.72,3.12]
[1763248002758,3.28,139.75,139.72,3.12]
[1763248003262,5.52062897,139.74,139.72,3.12]
[1763248003463,3.28,139.75,139.72,3.12]
[1763248003663,5.52088764,139.74,139.72,3.12]
[1763248003867,3.28,139.75,139.72,3.12]
[1763248004064,5.52088764,139.74,139.72,3.12]
[1763248004267,3.28,139.75,139.72,3.12]
[1763248004458,5.52244133,139.74,139.72,3.12]
[1763248004659,3.28,139.75,139.72,3.12]
[1763248004859,5.52244133,139.74,139.72,3.12]
[1763248005061,3.28,139.75,139.72,3.12]
[1763248005262,5.52244133,139.74,139.72,3.12]
[1763248005462,3.28,139.75,139.72,3.12]
[1763248005662,5.52266436,139.74,139.72,3.12]
[1763248005964,3.28,139.75,139.72,3.12]
[1763248006264,5.52266204,139.74,139.72,3.12]
[1763248006461,3.28,139.75,139.72,3.12]
[1763248006660,5.52292203,139.74,139.72,3.12]
[1763248006965,3.28,139.75,139.72,3.12]
[1763248007165,5.52292203,139.74,139.72,3.12]
[1763248007464,3.28,139.75,139.72,3.12]
[1763248007657,5.52322108,139.74,139.72,3.12]
[1763248007861,3.28,139.75,139.72,3.12]
[1763248008059,5.52322108,139.74,139.72,3.12]
[1763248008258,3.28,139.75,139.72,3.12]
[1763248008459,5.52369342,139.74,139.72,3.12]
[1763248008659,3.28,139.75,139.72,3.12]
[1763248008861,8.80369342,139.74,139.71,0.04926598]
[1763248009066,3.28,139.73,139.71,0.04926598]
[1763248009266,1.62323399,139.75,139.71,0.04926598]
[1763248009465,5.52449118,139.74,139.71,0.04926598]
[1763248009769,5.52449351,139.73,139.71,0.04926598]
[1763248009969,1.62323399,139.75,139.71,0.04926598]
[1763248010171,1.62323399,139.73,139.71,0.04926598]
[1763248010468,5.52449351,139.72,139.71,0.04926598]
[1763248012370,5.52449351,139.72,139.71,3.16926598]
[1763248012565,0.04842946,139.73,139.71,3.16926598]
[1763248013367,5.52528463,139.72,139.71,3.16926598]
[1763248014267,0.04842946,139.73,139.71,3.16926598]
[1763248015564,5.52555699,139.72,139.71,3.16926598]
[1763248019163,0.04842946,139.73,139.71,3.16926598]
[1763248019569,0.24842946,139.73,139.71,3.16926598]
[1763248019765,0.04842946,139.73,139.71,3.16926598]
[1763248020266,0.24842946,139.73,139.71,3.16926598]
[1763248020868,0.24842946,139.73,139.71,0.04926598]
[1763248021074,1.82323399,139.72,139.71,0.04926598]
[1763248021476,7.20093019,139.72,139.71,0.04926598]
[1763248022771,7.20105918,139.72,139.71,0.04926598]
[1763248024073,1.82323399,139.72,139.71,0.04926598]
[1763248024376,0.04842946,139.73,139.71,3.28926598]
[1763248024673,1.87166345,139.73,139.71,3.28926598]
[1763248024873,1.87166345,139.73,139.71,0.04926598]
[1763248025775,0.2,139.72,139.71,0.04926598]
[1763248029374,1.67166345,139.73,139.71,3.28926598]
[1763248029679,0.04842946,139.73,139.71,3.28926598]
[1763248030165,1.67166345,139.73,139.71,0.04926598]
[1763248033273,5.37587646,139.72,139.71,0.04926598]
[1763248040374,0.04842946,139.73,139.71,0.04926598]
[1763248041389,5.37571557,139.72,139.71,0.04926598]
[1763248043187,0.04842946,139.73,139.71,0.04926598]
[1763248043389,5.36477134,139.72,139.71,0.04926598]
[1763248049488,5.36477134,139.72,139.71,3.23926598]
[1763248049692,0.04842946,139.73,139.71,3.23926598]
[1763248049887,6.68875317,139.76,139.72,3.19]
[1763248050086,10.87971174,139.75,139.72,3.19]
[1763248050387,6.68875317,139.77,139.72,3.19]
[1763248050594,10.87882145,139.76,139.72,3.19]
[1763248050892,0.04891942,139.75,139.72,3.19]
[1763248053789,0.04891942,139.75,139.74,3.19]
[1763248053993,6.68875317,139.79,139.74,3.19]
[1763248054491,6.68875317,139.8,139.74,3.19]
[1763248054692,6.68875317,139.79,139.74,3.19]
[1763248054887,6.68875317,139.8,139.74,3.19]
[1763248055194,0.04689979,139.78,139.75,3.36554354]
[1763248055493,0.04689979,139.78,139.75,0.04554354]
[1763248056393,0.04689979,139.78,139.75,3.36554354]
[1763248077105,5.42880504,139.84,139.76,3.32]
[1763248077311,5.42813736,139.84,139.76,3.32]
[1763248078311,0.05146311,139.81,139.8,3.32]
[1763248082917,0.05146311,139.81,139.79,0.05484171]
[1763248085022,0.05146311,139.81,139.79,3.19484171]
[1763248099921,5.45678754,139.8,139.79,3.19484171]
[1763248100121,0.05146311,139.81,139.79,0.05484171]
[1763248102028,5.28312216,139.8,139.79,0.05484171]
[1763248108633,9.25872395,139.8,139.68,3.26]
[1763248108831,2.53560179,139.74,139.68,3.26]
[1763248109137,5.28312216,139.73,139.68,3.26]
[1763248109339,5.28312216,139.72,139.68,3.26]
[1763248109640,0.05158043,139.71,139.69,0.0526564]
[1763248111533,0.05158043,139.71,139.69,3.3126564]
[1763248129343,0.05158043,139.71,139.69,0.0526564]
[1763248131463,0.05158043,139.71,139.69,3.1326564]
[1763248140555,0.05158043,139.71,139.69,0.0526564]
[1763248140759,0.05158043,139.71,139.69,3.1326564]
[1763248144257,5.48005763,139.71,139.69,3.1326564]
[1763248144457,0.05158043,139.71,139.69,3.1326564]
[1763248144658,5.48005763,139.71,139.69,3.1326564]
[1763248144856,0.05158043,139.71,139.69,3.1326564]
[1763248145056,5.48005763,139.71,139.69,3.1326564]
[1763248145359,0.05158043,139.71,139.69,3.1326564]
[1763248145558,5.48502305,139.71,139.69,3.1326564]
[1763248145754,0.05158043,139.71,139.69,3.1326564]
[1763248145952,5.48502305,139.71,139.69,3.1326564]
[1763248146155,0.05158043,139.71,139.69,3.1326564]
[1763248148560,0.05158043,139.71,139.69,4.75706909]
[1763248148764,5.28878181,139.74,139.7,3.39]
[1763248148957,5.28878181,139.75,139.7,3.39]
[1763248149154,5.28878181,139.74,139.7,3.39]
[1763248149563,0.04,139.73,139.7,3.39]
[1763248149764,0.08838462,139.73,139.7,3.39]
[1763248150362,5.37716643,139.73,139.7,3.39]
[1763248150562,0.08838462,139.73,139.7,3.39]
[1763248150758,5.37716643,139.73,139.7,3.39]
[1763248150958,0.08838462,139.73,139.7,3.39]
[1763248152164,5.30311607,139.72,139.7,3.39]
[1763248152364,0.08838462,139.73,139.7,3.39]
[1763248152564,5.3032971,139.72,139.7,3.39]
[1763248152864,0.08838462,139.73,139.7,3.39]
[1763248153063,5.3032971,139.72,139.7,3.39]
[1763248153366,5.31235966,139.71,139.7,3.39]
[1763248158969,5.35235966,139.71,139.69,3.3626564]
[1763248159172,6.73606333,139.72,139.69,3.3626564]
[1763248159465,5.31229895,139.71,139.69,3.3626564]
[1763248159769,6.73606333,139.72,139.69,3.3626564]
[1763248159977,5.31229895,139.71,139.69,3.3626564]
[1763248160158,8.40886064,139.73,139.69,3.3626564]
[1763248160362,5.31197777,139.72,139.69,3.3626564]
[1763248160570,0.04838462,139.73,139.7,3.31]
[1763248160872,10.77706468,139.72,139.7,3.31]
[1763248161073,5.4655974,139.71,139.7,3.31]
[1763248161370,0.04838462,139.73,139.7,3.31]
[1763248165169,0.04838462,139.73,139.72,3.31]
[1763248171180,1.66441269,139.77,139.72,3.31]
[1763248171486,5.3784775,139.76,139.72,3.31]
[1763248171685,0.04,139.76,139.72,3.31]
[1763248172283,0.05122643,139.75,139.73,0.05302557]
[1763248172482,0.05122643,139.75,139.73,3.36302557]
[1763248172979,0.04,139.74,139.73,0.05302557]
[1763248173185,0.04,139.73,139.69,3.31]
[1763248173389,5.42714069,139.72,139.69,3.31]
[1763248173587,1.66441269,139.73,139.69,3.31]
[1763248173885,5.42726135,139.72,139.69,3.31]
[1763248174081,1.62441269,139.73,139.69,3.3637542]
[1763248174279,0.05266793,139.72,139.69,3.3637542]
[1763248182294,6.72648669,139.76,139.69,3.3637542]
[1763248182489,10.7704435,139.75,139.69,3.3637542]
[1763248182693,10.7704435,139.74,139.69,3.3637542]
[1763248182895,5.43134156,139.73,139.69,3.3637542]
[1763248183192,5.33910194,139.75,139.69,3.3637542]
[1763248183399,6.72648669,139.76,139.69,3.3637542]
[1763248183400,0.04995292,139.72,139.69,3.3637542]
[1763248188295,0.04995292,139.72,139.71,3.4]
[1763248192309,0.04,139.75,139.71,3.4]
[1763248192507,5.43095578,139.74,139.71,3.4]
[1763248192804,0.04,139.75,139.71,3.4]
[1763248193006,5.4309831,139.74,139.71,3.4]
[1763248193206,0.04,139.75,139.71,3.4]
[1763248193407,5.4803327,139.74,139.73,3.4]
[1763248196004,5.48301277,139.74,139.73,3.4]
[1763248199607,0.04935255,139.74,139.73,3.4]
[1763248200502,5.48470027,139.74,139.73,3.4]
[1763248202309,0.04,139.76,139.73,3.4]
[1763248202503,0.04,139.74,139.72,0.04561606]
[1763248202710,0.04,139.74,139.72,3.44561606]
[1763248203312,0.04646384,139.74,139.72,3.44561606]
[1763248203510,0.04,139.73,139.72,0.04561606]
[1763248203810,0.04,139.72,139.66,3.4]
[1763248204010,5.38588591,139.71,139.66,3.4]
[1763248204313,5.39588591,139.7,139.66,3.4]
[1763248204504,0.05,139.7,139.66,3.4]
[1763248204813,0.05035735,139.69,139.68,3.17]
[1763248208707,0.10035735,139.69,139.67,0.04660567]
[1763248208914,0.05,139.67,139.58,3.17]
[1763248209113,2.53771338,139.65,139.59,3.17]
[1763248209415,2.58771338,139.67,139.6,3.17]
[1763248209603,6.68846756,139.68,139.6,3.17]
[1763248209805,0.05456805,139.65,139.64,3.17]
[1763248210109,0.05053378,139.66,139.64,3.17]
[1763248210912,0.10053378,139.66,139.64,3.17]
[1763248211313,0.10053378,139.66,139.63,3.21697809]
[1763248213918,0.05053378,139.66,139.63,3.21697809]
[1763248216704,0.05053378,139.66,139.64,3.3]
[1763248220523,0.04,139.7,139.64,3.3]
[1763248221623,0.05302413,139.68,139.64,3.3]
[1763248226720,0.05302413,139.68,139.66,3.3]
[1763248226926,0.04,139.73,139.68,3.3]
[1763248227918,0.15473941,139.72,139.7,3.3]
[1763248236523,0.05473941,139.72,139.7,3.3]
[1763248243636,0.05473941,139.72,139.71,4.72375098]
[1763248243846,5.61101954,139.76,139.72,3.1]
[1763248244027,8.41755919,139.8,139.74,3.1]
[1763248244227,5.61126274,139.79,139.74,3.1]
[1763248244428,5.61126274,139.78,139.74,3.1]
[1763248244634,1.76375098,139.8,139.74,3.1]
[1763248244831,0.05140868,139.78,139.77,3.1]
[1763248245032,5.66148333,139.78,139.77,3.1]
[1763248245235,0.14,139.77,139.76,0.05331905]
[1763248245425,0.14,139.76,139.74,3.1]
[1763248246437,0.14,139.76,139.74,3.14666209]
[1763248249236,0.14,139.76,139.74,0.04666209]
[1763248249436,0.14,139.74,139.69,3.1]
[1763248249637,0.14,139.74,139.7,4.72375098]
[1763248249836,0.14,139.73,139.7,3.1]
[1763248250436,0.18936214,139.73,139.7,3.14606418]